[Event "Titled Tuesday Blitz March 01 Late 2022"]
[White "Rudzinska, Michalina"]
[Black "Martin Barcelo, Carles"]
[WhiteFideId "1172883"]
[BlackFideId "24561444"]
[WhiteElo "1904"]
[BlackElo "1875"]
[Result "0-1"]
[Round "10"]
[TimeControl "180+1"]
[Date "2022.03.02"]
[WhiteClock "0:01:21"]
[BlackClock "0:00:12"]

1. e4 {[%clk 0:03:00]}  c6 {[%clk 0:02:57]} 2. d4 {[%clk 0:02:58]}  d5 {[%clk 0:02:57]} 3. Nc3 {[%clk 0:02:56]}  dxe4 {[%clk 0:02:57]} 4. Nxe4 {[%clk 0:02:53]}  Nf6 {[%clk 0:02:57]} 5. Nxf6+ {[%clk 0:02:53]}  exf6 {[%clk 0:02:58]} 6. c3 {[%clk 0:02:53]}  Bd6 {[%clk 0:02:58]} 7. Bd3 {[%clk 0:02:54]}  O-O {[%clk 0:02:59]} 8. Ne2 {[%clk 0:02:55]}  Re8 {[%clk 0:02:59]} 9. O-O {[%clk 0:02:55]}  Nd7 {[%clk 0:02:55]} 10. Bf4 {[%clk 0:02:53]}  Nf8 {[%clk 0:02:51]} 11. Bxd6 {[%clk 0:02:53]}  Qxd6 {[%clk 0:02:52]} 12. Ng3 {[%clk 0:02:53]}  g6 {[%clk 0:02:35]} 13. Qf3 {[%clk 0:02:53]}  Kg7 {[%clk 0:02:32]} 14. Rfe1 {[%clk 0:02:53]}  Bd7 {[%clk 0:02:30]} 15. h4 {[%clk 0:02:49]}  h5 {[%clk 0:02:25]} 16. Re3 {[%clk 0:02:45]}  Bg4 {[%clk 0:02:10]} 17. Ne4 {[%clk 0:02:38]}  Qd8 {[%clk 0:01:50]} 18. Qg3 {[%clk 0:02:34]}  Bf5 {[%clk 0:01:35]} 19. Rae1 {[%clk 0:02:33]}  Bxe4 {[%clk 0:01:26]} 20. Bxe4 {[%clk 0:02:29]}  Re6 {[%clk 0:01:08]} 21. f4 {[%clk 0:02:26]}  Qd6 {[%clk 0:00:59]} 22. Bd3 {[%clk 0:02:07]}  Rae8 {[%clk 0:00:53]} 23. Qf3 {[%clk 0:02:07]}  f5 {[%clk 0:00:49]} 24. Re5 {[%clk 0:02:03]}  f6 {[%clk 0:00:44]} 25. R5e3 {[%clk 0:02:01]}  Rxe3 {[%clk 0:00:36]} 26. Rxe3 {[%clk 0:02:02]}  Rxe3 {[%clk 0:00:36]} 27. Qxe3 {[%clk 0:02:03]}  Ne6 {[%clk 0:00:36]} 28. g3 {[%clk 0:02:02]}  Nc7 {[%clk 0:00:36]} 29. c4 {[%clk 0:02:01]}  Qe6 {[%clk 0:00:33]} 30. Qxe6 {[%clk 0:01:55]}  Nxe6 {[%clk 0:00:34]} 31. d5 {[%clk 0:01:55]}  cxd5 {[%clk 0:00:32]} 32. cxd5 {[%clk 0:01:55]}  Nc5 {[%clk 0:00:24]} 33. d6 {[%clk 0:01:42]}  Kf7 {[%clk 0:00:17]} 34. Bc4+ {[%clk 0:01:41]}  Ke8 {[%clk 0:00:18]} 35. b4 {[%clk 0:01:37]}  Ne4 {[%clk 0:00:14]} 36. Bb5+ {[%clk 0:01:35]}  Kd8 {[%clk 0:00:13]} 37. d7 {[%clk 0:01:31]}  Nxg3 {[%clk 0:00:13]} 38. Ba4 {[%clk 0:01:24]}  Ne2+ {[%clk 0:00:11]} 39. Kf2 {[%clk 0:01:24]}  Nxf4 {[%clk 0:00:12]} 40. Kf3 {[%clk 0:01:23]}  Nd3 {[%clk 0:00:10]} 41. Ke3 {[%clk 0:01:18]}  Ne5 {[%clk 0:00:10]} 42. Kd4 {[%clk 0:01:18]}  Nxd7 {[%clk 0:00:10]} 43. Kd5 {[%clk 0:01:19]}  Nb6+ {[%clk 0:00:10]} 44. Ke6 {[%clk 0:01:19]}  Nxa4 {[%clk 0:00:11]} 45. Kxf6 {[%clk 0:01:20]}  f4 {[%clk 0:00:11]} 46. Kxg6 {[%clk 0:01:21]}  f3 {[%clk 0:00:12]} 0-1


[Site "https://www.chess.com"]

[Event "Titled Tuesday Blitz March 01 Late 2022"]
[White "Sarkar, Justin"]
[Black "Aggelis, Nikolaos"]
[WhiteFideId "2010011"]
[BlackFideId "4213220"]
[WhiteElo "2038"]
[BlackElo "2154"]
[Result "0-1"]
[Round "10"]
[TimeControl "180+1"]
[Date "2022.03.02"]
[WhiteClock "0:01:05"]
[BlackClock "0:01:55"]

1. d4 {[%clk 0:02:49]}  Nf6 {[%clk 0:02:54]} 2. c4 {[%clk 0:02:46]}  c5 {[%clk 0:02:47]} 3. d5 {[%clk 0:02:45]}  b5 {[%clk 0:02:44]} 4. cxb5 {[%clk 0:02:46]}  a6 {[%clk 0:02:40]} 5. e3 {[%clk 0:02:43]}  axb5 {[%clk 0:02:29]} 6. Bxb5 {[%clk 0:02:44]}  Qa5+ {[%clk 0:02:27]} 7. Nc3 {[%clk 0:02:43]}  Bb7 {[%clk 0:02:26]} 8. Bd2 {[%clk 0:02:34]}  Qb6 {[%clk 0:02:24]} 9. Bc4 {[%clk 0:02:15]}  e6 {[%clk 0:02:18]} 10. e4 {[%clk 0:02:10]}  Nxe4 {[%clk 0:02:04]} 11. Nxe4 {[%clk 0:01:12]}  exd5 {[%clk 0:02:03]} 12. Nxc5 {[%clk 0:01:10]}  Bxc5 {[%clk 0:01:55]} 13. Qe2+ {[%clk 0:01:05]}  Kd8 {[%clk 0:01:55]} 0-1


[Site "https://www.chess.com"]

[Event "Titled Tuesday Blitz March 01 Late 2022"]
[White "Seo, Jung Min"]
[Black "Kamsky, Gata"]
[WhiteFideId "1734687"]
[BlackFideId "2000024"]
[WhiteElo "2401"]
[BlackElo "2645"]
[Result "1/2-1/2"]
[Round "10"]
[TimeControl "180+1"]
[Date "2022.03.01"]
[WhiteClock "0:00:25"]
[BlackClock "0:00:21"]

1. d4 {[%clk 0:03:00]}  Nf6 {[%clk 0:02:56]} 2. c4 {[%clk 0:03:00]}  g6 {[%clk 0:02:55]} 3. Nc3 {[%clk 0:03:00]}  Bg7 {[%clk 0:02:54]} 4. e4 {[%clk 0:03:00]}  d6 {[%clk 0:02:54]} 5. Be2 {[%clk 0:02:59]}  e5 {[%clk 0:02:51]} 6. Nf3 {[%clk 0:02:58]}  O-O {[%clk 0:02:50]} 7. Be3 {[%clk 0:02:45]}  Nbd7 {[%clk 0:02:41]} 8. Qd2 {[%clk 0:02:38]}  Re8 {[%clk 0:02:40]} 9. d5 {[%clk 0:02:31]}  Ng4 {[%clk 0:02:37]} 10. Bg5 {[%clk 0:02:30]}  f6 {[%clk 0:02:36]} 11. Bh4 {[%clk 0:02:30]}  Nh6 {[%clk 0:02:26]} 12. Rb1 {[%clk 0:02:23]}  a5 {[%clk 0:02:24]} 13. Qc2 {[%clk 0:02:22]}  Nc5 {[%clk 0:02:22]} 14. Nd2 {[%clk 0:02:22]}  Nf7 {[%clk 0:02:14]} 15. f3 {[%clk 0:02:20]}  Bh6 {[%clk 0:02:15]} 16. O-O {[%clk 0:02:15]}  Be3+ {[%clk 0:02:14]} 17. Kh1 {[%clk 0:02:15]}  Bd7 {[%clk 0:02:12]} 18. b3 {[%clk 0:02:12]}  h5 {[%clk 0:02:07]} 19. a3 {[%clk 0:02:10]}  Rf8 {[%clk 0:01:49]} 20. b4 {[%clk 0:02:09]}  axb4 {[%clk 0:01:47]} 21. axb4 {[%clk 0:02:10]}  Na4 {[%clk 0:01:47]} 22. Nb3 {[%clk 0:01:58]}  Nxc3 {[%clk 0:01:42]} 23. Qxc3 {[%clk 0:01:58]}  Bg5 {[%clk 0:01:42]} 24. Bf2 {[%clk 0:01:57]}  f5 {[%clk 0:01:41]} 25. c5 {[%clk 0:01:54]}  fxe4 {[%clk 0:01:40]} 26. fxe4 {[%clk 0:01:54]}  b6 {[%clk 0:01:36]} 27. Bd3 {[%clk 0:01:53]}  Nh6 {[%clk 0:01:31]} 28. Bg1 {[%clk 0:01:52]}  Rxf1 {[%clk 0:01:24]} 29. Rxf1 {[%clk 0:01:51]}  Ng4 {[%clk 0:01:23]} 30. Be2 {[%clk 0:01:49]}  Ra2 {[%clk 0:01:18]} 31. Bf3 {[%clk 0:01:42]}  Bb5 {[%clk 0:01:01]} 32. Ra1 {[%clk 0:01:36]}  Rxa1 {[%clk 0:00:51]} 33. Qxa1 {[%clk 0:01:34]}  Bf4 {[%clk 0:00:43]} 34. cxb6 {[%clk 0:01:25]}  cxb6 {[%clk 0:00:43]} 35. g3 {[%clk 0:01:15]}  Bg5 {[%clk 0:00:40]} 36. Qd1 {[%clk 0:01:04]}  Ne3 {[%clk 0:00:36]} 37. Bxe3 {[%clk 0:00:49]}  Bxe3 {[%clk 0:00:36]} 38. Be2 {[%clk 0:00:50]}  Ba4 {[%clk 0:00:35]} 39. Qd3 {[%clk 0:00:49]}  Qg5 {[%clk 0:00:34]} 40. b5 {[%clk 0:00:39]}  h4 {[%clk 0:00:33]} 41. Kg2 {[%clk 0:00:37]}  hxg3 {[%clk 0:00:30]} 42. hxg3 {[%clk 0:00:37]}  Kg7 {[%clk 0:00:26]} 43. Qc4 {[%clk 0:00:33]}  Bxb3 {[%clk 0:00:25]} 44. Qxb3 {[%clk 0:00:33]}  Bc5 {[%clk 0:00:26]} 45. Qf3 {[%clk 0:00:28]}  Qd2 {[%clk 0:00:25]} 46. Kh3 {[%clk 0:00:28]}  Kh6 {[%clk 0:00:24]} 47. Qg4 {[%clk 0:00:25]}  Qg5 {[%clk 0:00:20]} 48. Qxg5+ {[%clk 0:00:24]}  Kxg5 {[%clk 0:00:21]} 49. Bf3 {[%clk 0:00:25]} 1/2-1/2


[Site "https://www.chess.com"]

[Event "Titled Tuesday Blitz March 01 Late 2022"]
[White "Toncheva, Nadya"]
[Black "Calcada, Lucas Galvan"]
[WhiteFideId "2924056"]
[BlackFideId "22746099"]
[WhiteElo "1920"]
[BlackElo "1402"]
[Result "1-0"]
[Round "10"]
[TimeControl "180+1"]
[Date "2022.03.02"]
[WhiteClock "0:00:35"]
[BlackClock "0:00:08"]

1. e4 {[%clk 0:03:00]}  c5 {[%clk 0:02:59]} 2. Nf3 {[%clk 0:03:01]}  d6 {[%clk 0:02:58]} 3. d4 {[%clk 0:03:01]}  cxd4 {[%clk 0:02:58]} 4. Nxd4 {[%clk 0:03:02]}  Nf6 {[%clk 0:02:58]} 5. f3 {[%clk 0:03:03]}  e6 {[%clk 0:02:53]} 6. c4 {[%clk 0:03:02]}  a6 {[%clk 0:02:51]} 7. Nc3 {[%clk 0:03:03]}  Qc7 {[%clk 0:02:51]} 8. Be2 {[%clk 0:03:03]}  b6 {[%clk 0:02:51]} 9. Be3 {[%clk 0:03:03]}  Nbd7 {[%clk 0:02:51]} 10. O-O {[%clk 0:03:03]}  Bb7 {[%clk 0:02:52]} 11. a4 {[%clk 0:03:04]}  Be7 {[%clk 0:02:51]} 12. Qd2 {[%clk 0:03:04]}  O-O {[%clk 0:02:50]} 13. a5 {[%clk 0:03:04]}  bxa5 {[%clk 0:02:47]} 14. Nb3 {[%clk 0:03:05]}  Rac8 {[%clk 0:02:37]} 15. Nxa5 {[%clk 0:03:05]}  Ba8 {[%clk 0:02:38]} 16. Rfd1 {[%clk 0:03:04]}  Ne5 {[%clk 0:02:34]} 17. Bf1 {[%clk 0:03:04]}  Qb8 {[%clk 0:02:22]} 18. Qf2 {[%clk 0:03:01]}  Bd8 {[%clk 0:02:20]} 19. h3 {[%clk 0:02:44]}  Bxa5 {[%clk 0:02:05]} 20. Rxa5 {[%clk 0:02:45]}  Nxc4 {[%clk 0:02:06]} 21. Bxc4 {[%clk 0:02:44]}  Rxc4 {[%clk 0:02:06]} 22. Rxa6 {[%clk 0:02:44]}  d5 {[%clk 0:02:04]} 23. exd5 {[%clk 0:02:44]}  Nxd5 {[%clk 0:02:03]} 24. Bd4 {[%clk 0:02:40]}  Bb7 {[%clk 0:01:44]} 25. Ra5 {[%clk 0:02:30]}  Qc8 {[%clk 0:01:39]} 26. Ne4 {[%clk 0:02:11]}  Rc2 {[%clk 0:01:37]} 27. Qg3 {[%clk 0:02:09]}  f6 {[%clk 0:01:31]} 28. Rxd5 {[%clk 0:01:50]}  Bxd5 {[%clk 0:00:44]} 29. Nxf6+ {[%clk 0:01:48]}  Rxf6 {[%clk 0:00:37]} 30. Bxf6 {[%clk 0:01:48]}  Qf8 {[%clk 0:00:24]} 31. Bc3 {[%clk 0:01:34]}  Qc5+ {[%clk 0:00:15]} 32. Kh2 {[%clk 0:01:19]}  Qa7 {[%clk 0:00:15]} 33. Ra1 {[%clk 0:01:05]}  Qf7 {[%clk 0:00:10]} 34. Ra4 {[%clk 0:00:37]}  Bxf3 {[%clk 0:00:09]} 35. Qb8+ {[%clk 0:00:33]}  Qf8 {[%clk 0:00:09]} 36. Qxf8+ {[%clk 0:00:33]}  Kxf8 {[%clk 0:00:09]} 37. Rf4+ {[%clk 0:00:34]}  Ke7 {[%clk 0:00:08]} 38. Rxf3 {[%clk 0:00:35]} 1-0


[Site "https://www.chess.com"]

[Event "Titled Tuesday Blitz March 01 Late 2022"]
[White "Urazayev, Arystanbek"]
[Black "Kanyamarala, Trisha"]
[WhiteFideId "13709810"]
[BlackFideId "45004722"]
[WhiteElo "2321"]
[BlackElo "2002"]
[Result "1-0"]
[Round "10"]
[TimeControl "180+1"]
[Date "2022.03.01"]
[WhiteClock "0:02:46"]
[BlackClock "0:02:08"]

1. e4 {[%clk 0:03:00]}  c5 {[%clk 0:02:59]} 2. Nf3 {[%clk 0:03:01]}  d6 {[%clk 0:02:59]} 3. d4 {[%clk 0:03:02]}  cxd4 {[%clk 0:03:00]} 4. Nxd4 {[%clk 0:03:02]}  Nf6 {[%clk 0:03:01]} 5. Nc3 {[%clk 0:03:03]}  Nc6 {[%clk 0:03:01]} 6. Nd5 {[%clk 0:03:03]}  Nxe4 {[%clk 0:02:54]} 7. Nb5 {[%clk 0:03:02]}  Bf5 {[%clk 0:02:35]} 8. Nbc7+ {[%clk 0:02:54]}  Kd7 {[%clk 0:02:34]} 9. Nxa8 {[%clk 0:02:55]}  Qxa8 {[%clk 0:02:34]} 10. Bd3 {[%clk 0:02:54]}  e6 {[%clk 0:02:33]} 11. Ne3 {[%clk 0:02:54]}  Bg6 {[%clk 0:02:32]} 12. O-O {[%clk 0:02:54]}  Be7 {[%clk 0:02:32]} 13. c3 {[%clk 0:02:48]}  Rd8 {[%clk 0:02:31]} 14. Qc2 {[%clk 0:02:48]}  Nc5 {[%clk 0:02:28]} 15. Bxg6 {[%clk 0:02:47]}  hxg6 {[%clk 0:02:29]} 16. b4 {[%clk 0:02:48]}  Na6 {[%clk 0:02:15]} 17. b5 {[%clk 0:02:46]}  Nc7 {[%clk 0:02:14]} 18. bxc6+ {[%clk 0:02:46]}  bxc6 {[%clk 0:02:14]} 19. Rd1 {[%clk 0:02:46]}  Rh8 {[%clk 0:02:14]} 20. Ba3 {[%clk 0:02:46]}  Nb5 {[%clk 0:02:10]} 21. Bb2 {[%clk 0:02:44]}  d5 {[%clk 0:02:09]} 22. c4 {[%clk 0:02:44]}  Nc7 {[%clk 0:02:09]} 23. Be5 {[%clk 0:02:45]}  f6 {[%clk 0:02:07]} 24. Bxc7 {[%clk 0:02:45]}  Kxc7 {[%clk 0:02:08]} 25. cxd5 {[%clk 0:02:46]}  exd5 {[%clk 0:02:08]} 26. Nxd5+ {[%clk 0:02:46]} 1-0


[Site "https://www.chess.com"]

[Event "Titled Tuesday Blitz March 01 Late 2022"]
[White "Vusatiuk, Vladimir"]
[Black "Tanenbaum, Zachary"]
[WhiteFideId "14118610"]
[BlackFideId "2060850"]
[WhiteElo "2157"]
[BlackElo "2168"]
[Result "1/2-1/2"]
[Round "10"]
[TimeControl "180+1"]
[Date "2022.03.01"]
[WhiteClock "0:00:13"]
[BlackClock "0:00:14"]

1. e3 {[%clk 0:03:00]}  d5 {[%clk 0:02:59]} 2. b3 {[%clk 0:03:00]}  e5 {[%clk 0:02:59]} 3. Bb2 {[%clk 0:03:00]}  Bd6 {[%clk 0:02:56]} 4. Nf3 {[%clk 0:02:58]}  Qe7 {[%clk 0:02:53]} 5. d4 {[%clk 0:02:58]}  e4 {[%clk 0:02:48]} 6. Nfd2 {[%clk 0:02:58]}  c6 {[%clk 0:02:46]} 7. c4 {[%clk 0:02:58]}  Nf6 {[%clk 0:02:44]} 8. Qc1 {[%clk 0:02:53]}  O-O {[%clk 0:02:42]} 9. Ba3 {[%clk 0:02:51]}  Bf5 {[%clk 0:02:34]} 10. Bxd6 {[%clk 0:02:51]}  Qxd6 {[%clk 0:02:35]} 11. Nc3 {[%clk 0:02:28]}  a6 {[%clk 0:02:28]} 12. c5 {[%clk 0:02:19]}  Qc7 {[%clk 0:02:26]} 13. Be2 {[%clk 0:02:08]}  Nbd7 {[%clk 0:02:16]} 14. h3 {[%clk 0:02:05]}  Bg6 {[%clk 0:02:09]} 15. Qb2 {[%clk 0:01:33]}  h6 {[%clk 0:01:53]} 16. b4 {[%clk 0:01:33]}  Ne8 {[%clk 0:01:46]} 17. a4 {[%clk 0:01:33]}  f5 {[%clk 0:01:45]} 18. g3 {[%clk 0:01:27]}  Nef6 {[%clk 0:01:42]} 19. Nb3 {[%clk 0:01:25]}  Bh5 {[%clk 0:01:40]} 20. Bxh5 {[%clk 0:01:14]}  Nxh5 {[%clk 0:01:41]} 21. h4 {[%clk 0:01:00]}  Ndf6 {[%clk 0:01:35]} 22. Qe2 {[%clk 0:00:47]}  Ng4 {[%clk 0:01:34]} 23. Kd2 {[%clk 0:00:46]}  Rae8 {[%clk 0:01:26]} 24. b5 {[%clk 0:00:46]}  Qd7 {[%clk 0:01:14]} 25. bxc6 {[%clk 0:00:45]}  bxc6 {[%clk 0:01:14]} 26. Rhb1 {[%clk 0:00:31]}  f4 {[%clk 0:01:02]} 27. gxf4 {[%clk 0:00:31]}  Nxf4 {[%clk 0:01:02]} 28. exf4 {[%clk 0:00:31]}  e3+ {[%clk 0:01:03]} 29. fxe3 {[%clk 0:00:23]}  Nxe3 {[%clk 0:00:57]} 30. Kc1 {[%clk 0:00:11]}  Rxf4 {[%clk 0:00:51]} 31. Nd2 {[%clk 0:00:09]}  Rxd4 {[%clk 0:00:23]} 32. Qf2 {[%clk 0:00:05]}  Rd3 {[%clk 0:00:19]} 33. Rb3 {[%clk 0:00:04]}  d4 {[%clk 0:00:14]} 34. Nce4 {[%clk 0:00:04]}  Rxb3 {[%clk 0:00:13]} 35. Nxb3 {[%clk 0:00:04]}  Rxe4 {[%clk 0:00:13]} 36. Kb2 {[%clk 0:00:04]}  d3 {[%clk 0:00:11]} 37. Re1 {[%clk 0:00:03]}  Qe6 {[%clk 0:00:10]} 38. Nd2 {[%clk 0:00:02]}  Rb4+ {[%clk 0:00:10]} 39. Kc3 {[%clk 0:00:01]}  Nd5+ {[%clk 0:00:09]} 40. Kxd3 {[%clk 0:00:02]}  Qg6+ {[%clk 0:00:08]} 41. Ke2 {[%clk 0:00:01]}  Nc3+ {[%clk 0:00:08]} 42. Kf1 {[%clk 0:00:02]}  Qd3+ {[%clk 0:00:07]} 43. Kg1 {[%clk 0:00:02]}  Rg4+ {[%clk 0:00:07]} 44. Kh2 {[%clk 0:00:02]}  Qg6 {[%clk 0:00:05]} 45. Nf3 {[%clk 0:00:02]}  Rf4 {[%clk 0:00:05]} 46. Qe3 {[%clk 0:00:02]}  Qg4 {[%clk 0:00:05]} 47. Qxc3 {[%clk 0:00:02]}  Rxf3 {[%clk 0:00:05]} 48. Re8+ {[%clk 0:00:02]}  Kh7 {[%clk 0:00:05]} 49. Qc2+ {[%clk 0:00:02]}  Rf5 {[%clk 0:00:05]} 50. Rf8 {[%clk 0:00:02]}  Qxh4+ {[%clk 0:00:04]} 51. Kg1 {[%clk 0:00:03]}  Qg4+ {[%clk 0:00:04]} 52. Kh1 {[%clk 0:00:03]}  Qf3+ {[%clk 0:00:04]} 53. Kh2 {[%clk 0:00:04]}  Qf4+ {[%clk 0:00:04]} 54. Kh1 {[%clk 0:00:04]}  g6 {[%clk 0:00:05]} 55. Rxf5 {[%clk 0:00:04]}  Qxf5 {[%clk 0:00:06]} 56. Qb3 {[%clk 0:00:04]}  Qf1+ {[%clk 0:00:06]} 57. Kh2 {[%clk 0:00:05]}  Qf2+ {[%clk 0:00:07]} 58. Kh1 {[%clk 0:00:05]}  Qxc5 {[%clk 0:00:06]} 59. Qf7+ {[%clk 0:00:05]}  Kh8 {[%clk 0:00:07]} 60. Qf6+ {[%clk 0:00:06]}  Kg8 {[%clk 0:00:07]} 61. Qxg6+ {[%clk 0:00:06]}  Kf8 {[%clk 0:00:07]} 62. Qxh6+ {[%clk 0:00:07]}  Ke7 {[%clk 0:00:07]} 63. Qg7+ {[%clk 0:00:08]}  Ke6 {[%clk 0:00:07]} 64. Qg6+ {[%clk 0:00:08]}  Kd5 {[%clk 0:00:06]} 65. Qd3+ {[%clk 0:00:08]}  Qd4 {[%clk 0:00:07]} 66. Qxa6 {[%clk 0:00:09]}  Qe4+ {[%clk 0:00:06]} 67. Kg1 {[%clk 0:00:09]}  Qe3+ {[%clk 0:00:06]} 68. Kg2 {[%clk 0:00:09]}  Qe4+ {[%clk 0:00:07]} 69. Kf2 {[%clk 0:00:10]}  Qd4+ {[%clk 0:00:07]} 70. Ke2 {[%clk 0:00:10]}  Qc4+ {[%clk 0:00:06]} 71. Qxc4+ {[%clk 0:00:11]}  Kxc4 {[%clk 0:00:07]} 72. a5 {[%clk 0:00:04]}  Kb5 {[%clk 0:00:07]} 73. Kd3 {[%clk 0:00:05]}  Kxa5 {[%clk 0:00:07]} 74. Kc4 {[%clk 0:00:05]}  Kb6 {[%clk 0:00:07]} 75. Kb4 {[%clk 0:00:06]}  Kb7 {[%clk 0:00:08]} 76. Kc5 {[%clk 0:00:06]}  Kc7 {[%clk 0:00:08]} 77. Kc4 {[%clk 0:00:07]}  Kd6 {[%clk 0:00:09]} 78. Kd4 {[%clk 0:00:07]}  c5+ {[%clk 0:00:10]} 79. Kc4 {[%clk 0:00:08]}  Kc6 {[%clk 0:00:10]} 80. Kc3 {[%clk 0:00:09]}  Kd5 {[%clk 0:00:11]} 81. Kd3 {[%clk 0:00:09]}  c4+ {[%clk 0:00:11]} 82. Kc3 {[%clk 0:00:10]}  Kc5 {[%clk 0:00:12]} 83. Kc2 {[%clk 0:00:11]}  Kb4 {[%clk 0:00:13]} 84. Kb2 {[%clk 0:00:11]}  Kb5 {[%clk 0:00:13]} 85. Kc3 {[%clk 0:00:12]}  Kc5 {[%clk 0:00:13]} 86. Kc2 {[%clk 0:00:13]}  Kd5 {[%clk 0:00:14]} 87. Kc3 {[%clk 0:00:13]}  Kc5 {[%clk 0:00:14]} 1/2-1/2


[Site "https://www.chess.com"]

[Event "Titled Tuesday Blitz March 01 Late 2022"]
[White "Weetik, Vjacheslav"]
[Black "Janaszak, Dawid"]
[WhiteFideId "4153472"]
[BlackFideId "1119206"]
[WhiteElo "2674"]
[BlackElo "2518"]
[Result "1-0"]
[Round "10"]
[TimeControl "180+1"]
[Date "2022.03.02"]
[WhiteClock "0:00:17"]
[BlackClock "0:00:06"]

1. d4 {[%clk 0:02:59]}  Nf6 {[%clk 0:02:59]} 2. Bf4 {[%clk 0:02:59]}  c5 {[%clk 0:02:51]} 3. e3 {[%clk 0:03:00]}  cxd4 {[%clk 0:02:47]} 4. exd4 {[%clk 0:03:00]}  g6 {[%clk 0:02:44]} 5. Nf3 {[%clk 0:02:59]}  Bg7 {[%clk 0:02:44]} 6. c3 {[%clk 0:02:58]}  O-O {[%clk 0:02:45]} 7. Be2 {[%clk 0:02:57]}  Nh5 {[%clk 0:02:39]} 8. Be3 {[%clk 0:02:50]}  d5 {[%clk 0:02:34]} 9. Nbd2 {[%clk 0:02:43]}  Nc6 {[%clk 0:02:34]} 10. O-O {[%clk 0:02:42]}  Qc7 {[%clk 0:02:25]} 11. Re1 {[%clk 0:02:41]}  Nf4 {[%clk 0:02:24]} 12. Bf1 {[%clk 0:02:41]}  Bf5 {[%clk 0:02:22]} 13. Nb3 {[%clk 0:02:23]}  h6 {[%clk 0:01:56]} 14. Qd2 {[%clk 0:02:19]}  g5 {[%clk 0:01:54]} 15. h4 {[%clk 0:02:10]}  Bf6 {[%clk 0:01:47]} 16. hxg5 {[%clk 0:02:09]}  hxg5 {[%clk 0:01:48]} 17. g3 {[%clk 0:02:06]}  Be4 {[%clk 0:01:27]} 18. Qd1 {[%clk 0:01:38]}  Ne6 {[%clk 0:01:19]} 19. Nbd2 {[%clk 0:01:35]}  Bg6 {[%clk 0:01:17]} 20. Bh3 {[%clk 0:01:27]}  Ncd8 {[%clk 0:01:07]} 21. Nh2 {[%clk 0:01:24]}  Kg7 {[%clk 0:01:05]} 22. Ng4 {[%clk 0:01:19]}  Rh8 {[%clk 0:01:05]} 23. Bg2 {[%clk 0:01:20]}  Bh5 {[%clk 0:01:03]} 24. Bf3 {[%clk 0:01:15]}  Bg6 {[%clk 0:01:03]} 25. Bxd5 {[%clk 0:01:04]}  Qd6 {[%clk 0:00:46]} 26. Bg2 {[%clk 0:00:59]}  Rb8 {[%clk 0:00:46]} 27. Nc4 {[%clk 0:00:56]}  Qc7 {[%clk 0:00:46]} 28. Nce5 {[%clk 0:00:55]}  Bf5 {[%clk 0:00:38]} 29. Qf3 {[%clk 0:00:51]}  Bxg4 {[%clk 0:00:31]} 30. Nxg4 {[%clk 0:00:50]}  b5 {[%clk 0:00:31]} 31. d5 {[%clk 0:00:44]}  Nf8 {[%clk 0:00:26]} 32. Nxf6 {[%clk 0:00:43]}  exf6 {[%clk 0:00:26]} 33. Bd4 {[%clk 0:00:44]}  Rh6 {[%clk 0:00:25]} 34. Qf5 {[%clk 0:00:29]}  Rg6 {[%clk 0:00:24]} 35. Bf3 {[%clk 0:00:24]}  Qd7 {[%clk 0:00:17]} 36. Be4 {[%clk 0:00:19]}  Qd6 {[%clk 0:00:13]} 37. Kg2 {[%clk 0:00:18]}  b4 {[%clk 0:00:13]} 38. Rh1 {[%clk 0:00:17]}  bxc3 {[%clk 0:00:12]} 39. Bxc3 {[%clk 0:00:18]}  Rb5 {[%clk 0:00:06]} 40. Qh3 {[%clk 0:00:17]} 1-0


[Site "https://www.chess.com"]

[Event "Titled Tuesday Blitz March 01 Late 2022"]
[White "Winkels, Marcel"]
[Black "Vine, Elzbieta"]
[WhiteFideId "1003887"]
[BlackFideId "1119320"]
[WhiteElo "1900"]
[BlackElo "1834"]
[Result "1-0"]
[Round "10"]
[TimeControl "180+1"]
[Date "2022.03.02"]
[WhiteClock "0:00:44"]
[BlackClock "0:00:10"]

1. b3 {[%clk 0:03:00]}  e5 {[%clk 0:02:58]} 2. Bb2 {[%clk 0:02:59]}  d6 {[%clk 0:02:57]} 3. e3 {[%clk 0:03:00]}  Nc6 {[%clk 0:02:56]} 4. Bb5 {[%clk 0:02:56]}  Bd7 {[%clk 0:02:51]} 5. d4 {[%clk 0:02:55]}  Nf6 {[%clk 0:02:46]} 6. Nf3 {[%clk 0:02:53]}  exd4 {[%clk 0:02:35]} 7. exd4 {[%clk 0:02:44]}  Be7 {[%clk 0:02:32]} 8. O-O {[%clk 0:02:42]}  d5 {[%clk 0:02:23]} 9. Nbd2 {[%clk 0:02:31]}  O-O {[%clk 0:02:22]} 10. a3 {[%clk 0:02:27]}  Bd6 {[%clk 0:02:18]} 11. Bd3 {[%clk 0:02:26]}  Bg4 {[%clk 0:02:10]} 12. h3 {[%clk 0:02:24]}  Bd7 {[%clk 0:02:03]} 13. Re1 {[%clk 0:02:23]}  Qc8 {[%clk 0:02:01]} 14. Ne5 {[%clk 0:01:51]}  Re8 {[%clk 0:01:27]} 15. Qf3 {[%clk 0:01:39]}  Be6 {[%clk 0:01:01]} 16. Nf1 {[%clk 0:01:35]}  Nd7 {[%clk 0:00:46]} 17. Ng3 {[%clk 0:01:01]}  Ndxe5 {[%clk 0:00:39]} 18. dxe5 {[%clk 0:01:00]}  Bc5 {[%clk 0:00:38]} 19. Qh5 {[%clk 0:00:58]}  g6 {[%clk 0:00:19]} 20. Qh6 {[%clk 0:00:58]}  Bf8 {[%clk 0:00:17]} 21. Qh4 {[%clk 0:00:56]}  Bg7 {[%clk 0:00:16]} 22. f4 {[%clk 0:00:50]}  d4 {[%clk 0:00:13]} 23. Ne4 {[%clk 0:00:45]}  Qd8 {[%clk 0:00:10]} 24. Nf6+ {[%clk 0:00:44]} 1-0


[Site "https://www.chess.com"]